bitfinex-derivatives/quotes_BTCF0:USTF0_20251111
["timestamp","ask_amount","ask_price","bid_price","bid_amount"]
[1762872731205,0.76937075,104020.0,104010.0,0.013]
[1762872731911,0.74784734,104020.0,104010.0,0.11926803]
[1762872732802,0.74784734,104020.0,104010.0,0.62065803]
[1762872733701,0.74784734,104020.0,104010.0,0.06681803]
[1762872733908,0.88657209,104020.0,104000.0,0.03190384]
[1762872734112,0.37388,104010.0,104000.0,0.13817187]
[1762872734312,0.97667948,104010.0,104000.0,0.13817187]
[1762872734511,1.12127637,104010.0,104000.0,0.13817187]
[1762872734714,1.12127637,104010.0,104000.0,0.13597384]
[1762872735010,1.12127637,104010.0,104000.0,0.03290384]
[1762872735213,1.12127637,104010.0,104000.0,0.03390384]
[1762872735411,1.14281113,104010.0,104000.0,0.03390384]
[1762872735604,1.12127637,104010.0,104000.0,0.08452384]
[1762872735809,1.12127637,104010.0,104000.0,0.08652384]
[1762872736118,0.80127637,104010.0,104000.0,0.14117187]
[1762872737315,0.80127637,104010.0,104000.0,0.14017187]
[1762872739114,0.82284227,104010.0,104000.0,0.14017187]
[1762872739820,0.67824538,104010.0,104000.0,0.64156187]
[1762872740008,0.67824538,104010.0,104000.0,0.14017187]
[1762872741618,0.8222762,104010.0,104000.0,0.14017187]
[1762872741809,0.8222762,104010.0,104000.0,0.03390384]
[1762872742011,0.8222762,104010.0,103980.0,0.03176]
[1762872742209,0.28279948,103990.0,103980.0,0.51244]
[1762872742409,0.67796538,103990.0,103980.0,0.51244]
[1762872742612,0.67796538,103990.0,103960.0,0.03176]
[1762872742613,1.22189584,103990.0,103960.0,0.12899]
[1762872742818,0.28279948,103970.0,103960.0,0.61186803]
[1762872743113,0.65490121,103970.0,103960.0,0.63257803]
[1762872743624,0.80004773,103970.0,103960.0,0.03395803]
[1762872744006,0.80004773,103970.0,103960.0,0.13118803]
[1762872744319,0.80204773,103970.0,103960.0,0.63257803]
[1762872744614,0.80504773,103970.0,103960.0,0.03276]
[1762872744822,0.80504773,103970.0,103960.0,0.001]
[1762872745020,1.25606871,103970.0,103950.0,0.00047802]
[1762872745222,0.28279948,103960.0,103950.0,0.00047802]
[1762872745421,0.30436538,103960.0,103950.0,0.00047802]
[1762872745625,0.44849058,103960.0,103950.0,0.00047802]
[1762872746614,0.1656911,103960.0,103950.0,0.00047802]
[1762872746817,0.45049058,103960.0,103950.0,0.00047802]
[1762872747011,0.45249058,103960.0,103950.0,0.00047802]
[1762872747415,0.86206133,103960.0,103950.0,0.00047802]
[1762872747718,0.85806133,103960.0,103920.0,0.12757]
[1762872747914,0.37348,103950.0,103940.0,0.02071]
[1762872748114,0.3950459,103950.0,103940.0,0.02071]
[1762872748321,0.53935403,103950.0,103930.0,0.00219803]
[1762872748509,0.53935403,103950.0,103940.0,0.05105]
[1762872748510,0.53949787,103950.0,103940.0,0.05105]
[1762872748716,0.53959156,103950.0,103940.0,0.12976803]
[1762872749016,0.82239104,103950.0,103940.0,0.12976803]
[1762872749415,0.82239104,103950.0,103940.0,0.15047803]
[1762872749818,0.82239104,103950.0,103940.0,0.63115803]
[1762872750026,0.65651701,103950.0,103940.0,0.63115803]
[1762872750518,0.65851701,103950.0,103940.0,0.63115803]
[1762872750819,0.65651701,103950.0,103940.0,0.63215803]
[1762872751925,0.37371753,103950.0,103940.0,0.87267803]
[1762872752116,0.28279948,103970.0,103940.0,0.58268803]
[1762872752315,0.28279948,103970.0,103960.0,0.12757]
[1762872752511,0.80018231,103970.0,103960.0,0.12976803]
[1762872752716,0.65607948,103970.0,103960.0,0.63115803]
[1762872753616,0.65707948,103970.0,103960.0,0.63315803]
[1762872754424,0.65707948,103970.0,103960.0,0.63715803]
[1762872755320,0.35117618,103970.0,103960.0,0.63715803]
[1762872756016,0.63397566,103970.0,103960.0,0.63715803]
[1762872757120,0.35117618,103970.0,103960.0,0.63715803]
[1762872757527,0.28294332,103980.0,103970.0,0.09723]
[1762872757725,0.65590332,103980.0,103970.0,0.60081803]
[1762872758326,0.80007701,103980.0,103970.0,0.00219803]
[1762872758625,0.28294332,103980.0,103970.0,0.60081803]
[1762872758825,0.65594332,103980.0,103970.0,0.60081803]
[1762872759222,0.65594332,103980.0,103970.0,0.60381803]
[1762872759634,0.65694332,103980.0,103970.0,0.60681803]
[1762872760630,0.37414384,103980.0,103970.0,0.60681803]
[1762872760816,0.65694332,103980.0,103970.0,0.60681803]
[1762872761426,0.37414384,103980.0,103970.0,0.60681803]
[1762872762031,0.65694332,103980.0,103970.0,0.60681803]
[1762872762833,0.37414384,103980.0,103970.0,0.60681803]
[1762872763032,0.56708434,103980.0,103970.0,0.60681803]
[1762872766225,0.56708434,103980.0,103970.0,0.58610803]
[1762872766425,0.58778667,103980.0,103970.0,0.58610803]
[1762872766633,0.73242614,103980.0,103970.0,0.00819803]
[1762872767225,0.73242614,103980.0,103970.0,0.006]
[1762872768030,0.73242614,103980.0,103970.0,0.00819803]
[1762872768530,0.73242614,103980.0,103970.0,0.006]
[1762872769144,0.73242614,103980.0,103960.0,0.03034]
[1762872769333,0.1929405,103970.0,103960.0,0.51321803]
[1762872769634,0.35696609,103970.0,103960.0,0.51321803]
[1762872769836,0.35696609,103970.0,103960.0,0.56268803]
[1762872770030,0.35696609,103970.0,103960.0,0.53392803]
[1762872770238,0.35696609,103970.0,103960.0,0.62880803]
[1762872770429,0.72984609,103970.0,103960.0,0.63180803]
[1762872770630,0.5658205,103970.0,103960.0,0.63180803]
[1762872770931,0.5658205,103970.0,103960.0,0.62880803]
[1762872771135,0.5658205,103970.0,103960.0,0.63280803]
[1762872772232,0.5658205,103970.0,103960.0,0.62980803]
[1762872772434,0.5668205,103970.0,103960.0,0.62980803]
[1762872772739,0.7768205,103970.0,103960.0,0.62980803]
[1762872775330,0.4039405,103970.0,103960.0,0.62980803]
[1762872775539,0.7768205,103970.0,103960.0,0.62980803]
[1762872775940,0.79756423,103970.0,103960.0,0.62980803]
[1762872777039,0.79756423,103970.0,103960.0,0.60909803]
[1762872777238,0.79756423,103970.0,103960.0,0.62980803]
[1762872778039,0.60462373,103970.0,103960.0,0.62980803]
[1762872778240,0.79756423,103970.0,103960.0,0.72601363]
[1762872778441,0.37388,103970.0,103960.0,0.72601363]
[1762872778936,0.37388,103970.0,103960.0,0.62980803]
[1762872779143,0.001,103970.0,103960.0,0.62980803]
[1762872779340,0.021,103970.0,103960.0,0.62980803]
[1762872779541,0.55471682,103970.0,103960.0,0.62980803]
[1762872780641,0.5547356,103970.0,103960.0,0.62980803]
[1762872782334,0.69914304,103970.0,103960.0,0.62980803]
[1762872783540,0.69914304,103970.0,103960.0,0.62761]
[1762872783841,0.89208354,103970.0,103960.0,0.03434]
[1762872784047,0.94310452,103970.0,103960.0,0.03434]
[1762872784545,0.94310452,103970.0,103960.0,0.12372803]
[1762872784546,0.50620254,103970.0,103960.0,0.12372803]
[1762872784741,0.69914304,103970.0,103960.0,0.62511803]
[1762872785338,1.07202304,103970.0,103960.0,0.62511803]
[1762872786246,0.73202304,103970.0,103960.0,0.62511803]
[1762872787042,0.5876156,103970.0,103960.0,0.62511803]
[1762872788448,0.5668205,103970.0,103960.0,0.62511803]
[1762872788848,0.37388,103970.0,103960.0,0.62511803]
[1762872790254,0.5668205,103970.0,103960.0,0.62511803]
[1762872790948,0.58769064,103970.0,103960.0,0.62511803]
[1762872794554,0.58769064,103970.0,103960.0,0.60440803]
[1762872795750,0.58770311,103970.0,103960.0,0.60440803]
[1762872796048,0.58770311,103970.0,103960.0,0.62511803]
[1762872796259,0.7328447,103970.0,103960.0,0.60440803]
[1762872797250,0.9257852,103970.0,103960.0,0.12153]
[1762872797452,0.9257852,103970.0,103960.0,0.03434]
[1762872797857,1.3257852,103970.0,103950.0,0.00014384]
[1762872798057,0.385881,103960.0,103950.0,0.00014384]
[1762872798258,0.40676361,103960.0,103950.0,0.08953187]
[1762872798456,0.55028787,103960.0,103950.0,0.08953187]
[1762872799550,0.35734737,103960.0,103950.0,0.57421187]
[1762872799745,0.16440687,103960.0,103950.0,0.59492187]
[1762872799951,0.5667805,103960.0,103950.0,0.59492187]
[1762872800450,0.58764948,103960.0,103950.0,0.59492187]
[1762872800953,0.78073212,103960.0,103950.0,0.59492187]
[1762872801460,0.58772055,103960.0,103950.0,0.59492187]
[1762872801959,0.78073212,103960.0,103950.0,0.59492187]
[1762872802861,0.78073212,103960.0,103950.0,0.09353187]
[1762872803060,0.75986314,103960.0,103950.0,0.09353187]
[1762872803248,0.78071924,103960.0,103950.0,0.09353187]
[1762872803760,0.78071924,103960.0,103950.0,0.59492187]
[1762872804454,0.21486767,103960.0,103950.0,0.59492187]
[1762872804662,0.58770767,103960.0,103950.0,0.59492187]
[1762872805556,0.56685157,103960.0,103950.0,0.59492187]
[1762872805960,0.37384,103960.0,103950.0,0.59492187]
[1762872806261,0.56685157,103960.0,103950.0,0.59492187]
[1762872806663,0.21485989,103960.0,103950.0,0.59492187]
[1762872806960,0.19401157,103960.0,103950.0,0.59492187]
[1762872807362,0.21486192,103960.0,103950.0,0.59492187]
[1762872807555,0.21486192,103960.0,103950.0,0.69113667]
[1762872807556,0.19401157,103960.0,103950.0,0.69113667]
[1762872807861,0.56585157,103970.0,103960.0,0.10671]
[1762872808162,0.56585157,103970.0,103960.0,0.61029803]
[1762872809059,0.56685157,103970.0,103960.0,0.61029803]
[1762872810162,0.56685157,103970.0,103960.0,0.61229803]
[1762872810856,0.5877142,103970.0,103960.0,0.59158803]
[1762872811255,0.78072577,103970.0,103960.0,0.59158803]
[1762872811561,0.5877142,103970.0,103960.0,0.59158803]
[1762872811955,0.5877142,103970.0,103960.0,0.61229803]
[1762872812950,0.2148742,103970.0,103960.0,0.61229803]
[1762872813150,0.5819142,103970.0,103960.0,0.61229803]
[1762872813357,0.36804,103970.0,103960.0,0.61229803]
[1762872813563,0.56105157,103970.0,103960.0,0.61229803]
[1762872814665,0.001,103970.0,103960.0,0.70850363]
[1762872814866,0.48763541,103980.0,103970.0,0.08139]
[1762872815068,0.48763541,103980.0,103970.0,0.58497803]
[1762872815268,0.56595541,103980.0,103970.0,0.58497803]
[1762872815566,0.56581157,103980.0,103970.0,0.63651725]
[1762872816554,0.56581157,103980.0,103970.0,0.73271355]
[1762872816755,0.37317462,103990.0,103980.0,0.10671]
[1762872816967,0.56618619,103990.0,103980.0,0.61029803]
[1762872817168,0.56618619,103990.0,103980.0,0.58958803]
[1762872817463,0.63522619,103990.0,103980.0,0.61029803]
[1762872818163,0.44221462,103990.0,103980.0,0.61229803]
[1762872818465,0.63622619,103990.0,103980.0,0.61729803]
[1762872819769,0.65701544,103990.0,103980.0,0.61729803]
[1762872820866,0.63622619,103990.0,103980.0,0.61729803]
[1762872823468,0.65700342,103990.0,103980.0,0.61729803]
[1762872824367,0.44321462,103990.0,103980.0,0.61729803]
[1762872824562,0.56718619,103990.0,103980.0,0.61729803]
[1762872824762,0.63622619,103990.0,103980.0,0.61729803]
[1762872824967,0.7261213,103990.0,103980.0,0.61729803]
[1762872825963,0.2842813,103990.0,103980.0,0.61729803]
[1762872826171,0.37409462,103990.0,103980.0,0.61729803]
[1762872826363,0.37409462,103990.0,103980.0,0.71348513]
[1762872826566,0.31742668,104010.0,104000.0,0.10671]
[1762872826766,0.41664782,104030.0,104020.0,0.10671]
[1762872826767,0.48568782,104030.0,104020.0,0.10671]
[1762872827066,1.30646528,104030.0,104020.0,0.00219803]
[1762872827268,1.16205023,104030.0,104020.0,0.00219803]
[1762872827468,1.30712445,104030.0,104020.0,0.06932803]
[1762872827966,1.30712445,104030.0,104010.0,0.00014384]
[1762872828163,0.35194668,104020.0,104010.0,0.00014384]
[1762872828473,0.06904,104010.0,104000.0,0.005]
[1762872828665,0.74540241,104010.0,104000.0,0.005]
[1762872828864,0.88945408,104010.0,104000.0,0.005]
[1762872829665,0.88945408,104010.0,104000.0,0.00376923]
[1762872829873,0.06151,104000.0,103990.0,0.00014384]
[1762872830068,0.36519241,104000.0,103990.0,0.50373187]
[1762872830371,0.50940256,104000.0,103990.0,0.54359187]
[1762872830867,0.50940256,104000.0,103990.0,0.58041187]
[1762872831769,0.51040256,104000.0,103990.0,0.58741187]
[1762872832468,0.51973256,104000.0,103990.0,0.00934187]
[1762872833173,0.49895683,104000.0,103990.0,0.00934187]
[1762872833473,0.51973433,104000.0,103990.0,0.00934187]
[1762872835069,0.05398,103970.0,103960.0,0.15353922]
[1762872835269,0.70952668,103970.0,103960.0,0.58487803]
[1762872835567,0.70952668,103970.0,103960.0,0.60558803]
[1762872835763,0.65554668,103970.0,103960.0,0.60558803]
[1762872835963,0.37264,103970.0,103960.0,0.60558803]
[1762872836375,0.37964,103970.0,103960.0,0.60658803]
[1762872836672,0.38664,103970.0,103960.0,0.60758803]
[1762872837466,0.38664,103970.0,103960.0,0.70379363]
[1762872837467,0.66954668,103970.0,103960.0,0.70379363]
[1762872837772,0.66954668,103970.0,103960.0,0.60758803]
[1762872837974,0.69034945,103970.0,103960.0,0.60758803]
[1762872839773,0.66954668,103970.0,103960.0,0.60758803]
[1762872841079,0.74142937,103970.0,103960.0,0.60758803]
[1762872841675,0.74142937,103970.0,103960.0,0.58687803]
[1762872841876,0.74142937,103970.0,103960.0,0.48487803]
[1762872842180,0.74142937,103970.0,103960.0,0.002]
[1762872842181,0.8865193,103970.0,103960.0,0.002]
[1762872842983,0.8865193,103970.0,103950.0,0.00045364]
[1762872842984,0.04818,103960.0,103950.0,0.00045364]
[1762872843171,0.35188937,103960.0,103950.0,0.00045364]
[1762872843372,0.04574,103940.0,103930.0,0.02202]
[1762872843574,0.04574,103940.0,103920.0,0.02202]
[1762872843575,0.04574,103930.0,103920.0,0.09488]
[1762872843771,0.34944937,103930.0,103920.0,0.09707803]
[1762872843974,0.32864668,103930.0,103920.0,0.57775803]
[1762872844277,0.32864668,103930.0,103920.0,0.59846803]
[1762872844473,0.32871599,103930.0,103920.0,0.59846803]
[1762872845474,0.33771599,103930.0,103920.0,0.59946803]
[1762872846076,0.48955568,103930.0,103920.0,0.59946803]
[1762872847280,0.206649,103930.0,103920.0,0.59946803]
[1762872847486,0.48955568,103930.0,103920.0,0.59946803]
[1762872854781,0.48955568,103930.0,103920.0,0.11878803]
[1762872854980,0.48955568,103930.0,103920.0,0.59946803]
[1762872856888,0.29897599,103930.0,103920.0,0.59946803]
[1762872857089,0.34471599,103930.0,103920.0,0.11878803]
[1762872858088,0.34471599,103930.0,103920.0,0.59946803]
[1762872858989,0.48978495,103930.0,103920.0,0.59946803]
[1762872862886,0.67161599,103930.0,103920.0,0.59946803]
[1762872863085,0.68619599,103930.0,103920.0,0.59946803]
[1762872863284,0.67161599,103930.0,103920.0,0.59946803]
[1762872863493,0.67161599,103930.0,103920.0,0.69571063]
[1762872863494,0.01606931,103930.0,103920.0,0.69571063]
[1762872863889,0.0061,103980.0,103930.0,0.11209]
[1762872864093,0.0061,103980.0,103950.0,0.09138]
[1762872864094,0.02916,103960.0,103950.0,0.09138]
[1762872864295,0.17433647,103980.0,103970.0,0.09138]
[1762872864493,0.17433647,103980.0,103960.0,0.50199]
[1762872864494,0.43220346,103980.0,103960.0,0.50199]
[1762872864793,0.43220346,103980.0,103950.0,0.09138]
[1762872864794,0.02916,103960.0,103950.0,0.09138]
[1762872864987,0.42247019,103960.0,103950.0,0.57425803]
[1762872865193,0.70537687,103960.0,103950.0,0.57425803]
[1762872865494,0.70533687,103960.0,103950.0,0.59496803]
[1762872865897,0.70633687,103960.0,103950.0,0.59696803]
[1762872867199,0.85083133,103960.0,103950.0,0.59696803]
[1762872867696,0.85083133,103960.0,103950.0,0.60296803]
[1762872869698,0.85083133,103960.0,103950.0,0.01019803]
[1762872870100,0.85083133,103960.0,103950.0,0.08026803]
[1762872870401,0.85083133,103960.0,103950.0,0.58165803]
[1762872870402,0.47823133,103960.0,103950.0,0.58165803]
[1762872870601,0.85079133,103960.0,103950.0,0.58165803]
[1762872870899,0.46365133,103960.0,103950.0,0.58165803]
[1762872871102,0.83621133,103960.0,103950.0,0.58165803]
[1762872871398,0.85095748,103960.0,103950.0,0.58165803]
[1762872871898,0.83633748,103960.0,103950.0,0.58165803]
[1762872872102,0.67726302,103960.0,103950.0,0.58165803]
[1762872872395,0.02167019,103960.0,103950.0,0.67787283]
[1762872872600,0.58499283,103970.0,103960.0,0.09138]
[1762872872800,0.58499283,103970.0,103960.0,0.59496803]
[1762872873507,0.65471283,103970.0,103960.0,0.59496803]
[1762872873892,0.65471283,103970.0,103960.0,0.59596803]
[1762872875000,0.65571283,103970.0,103960.0,0.60096803]
[1762872875202,0.58599283,103970.0,103960.0,0.60596803]
[1762872875992,0.62201283,103970.0,103960.0,0.60596803]
[1762872876393,0.001,103970.0,103960.0,0.70217363]
[1762872876695,0.37348,103970.0,103960.0,0.70217363]
[1762872877197,0.001,103970.0,103960.0,0.70217363]
[1762872877403,0.00014384,103980.0,103970.0,0.1662663]
[1762872877599,0.00014384,103980.0,103970.0,0.57365803]
[1762872877901,0.00014384,103980.0,103970.0,0.66985433]
[1762872878297,0.37267078,103990.0,103980.0,0.09138]
[1762872878502,0.37267078,103990.0,103980.0,0.59496803]
[1762872878697,0.65574361,103990.0,103980.0,0.59496803]
[1762872878892,0.37267078,103990.0,103980.0,0.69115513]
[1762872879090,0.37267078,103990.0,103980.0,0.59496803]
[1762872879299,0.37267078,103990.0,103980.0,0.69115513]
[1762872879798,0.37254384,104000.0,103990.0,0.07007]
[1762872880003,0.65561667,104000.0,103990.0,0.57365803]
[1762872880395,0.37254384,104000.0,103990.0,0.57365803]
[1762872881208,0.37354384,104000.0,103990.0,0.57965803]
[1762872882105,0.37354384,104000.0,103990.0,0.58265803]
[1762872882699,0.37236,104010.0,104000.0,0.09138]
[1762872882902,0.37236,104010.0,104000.0,0.59496803]
[1762872883504,0.65543283,104010.0,104000.0,0.59496803]
[1762872884006,0.37336,104010.0,104000.0,0.59896803]
[1762872884405,0.37336,104010.0,104000.0,0.60096803]
[1762872885010,0.56613084,104010.0,104000.0,0.60096803]
[1762872885209,0.60215084,104010.0,104000.0,0.60096803]
[1762872885401,0.63585084,104010.0,104000.0,0.60096803]
[1762872886605,0.60215084,104010.0,104000.0,0.60096803]
[1762872887107,0.56613084,104010.0,104000.0,0.60096803]
[1762872887913,0.19377084,104010.0,104000.0,0.69713663]
[1762872888106,0.56601084,104010.0,104000.0,0.69713663]
[1762872888503,0.001,104010.0,104000.0,0.69713663]
[1762872889014,0.001,104010.0,104000.0,0.93749663]
[1762872889214,0.001,104010.0,104000.0,0.69713663]
[1762872889215,0.19377084,104010.0,104000.0,0.69713663]
[1762872889410,0.001,104010.0,104000.0,0.84132803]
[1762872889708,0.56511468,104020.0,104010.0,0.07033]
[1762872889709,0.63758468,104020.0,104010.0,0.07033]
[1762872889912,0.63758468,104020.0,104010.0,0.57391803]
[1762872890315,0.56511468,104020.0,104010.0,0.57391803]
[1762872890611,0.60047468,104020.0,104010.0,0.57391803]
[1762872890913,0.63758468,104020.0,104010.0,0.57391803]
[1762872891109,0.63858468,104020.0,104010.0,0.57891803]
[1762872891315,0.63858468,104020.0,104010.0,0.58091803]
[1762872891503,0.63858468,104020.0,104010.0,0.60372803]
[1762872892114,0.60147468,104020.0,104010.0,0.60372803]
[1762872892315,0.37334384,104020.0,104010.0,0.60372803]
[1762872892509,0.56611468,104020.0,104010.0,0.60372803]
[1762872892708,0.56611468,104020.0,104010.0,0.69988733]
[1762872892709,0.00114384,104020.0,104010.0,0.69988733]
[1762872893317,0.00114384,104020.0,104010.0,1.31236733]
[1762872893715,0.00114384,104020.0,104010.0,1.07200733]
[1762872893917,0.00023069,104030.0,104020.0,0.09314]
[1762872894217,0.00023069,104030.0,104020.0,0.69287813]
[1762872894403,0.00023069,104030.0,104020.0,0.59672803]
[1762872894807,0.00023069,104030.0,104020.0,0.69287813]
[1762872895515,0.00023069,104030.0,104020.0,0.69487813]
[1762872895715,0.19291468,104040.0,104030.0,0.1892809]
[1762872895917,0.00014384,104040.0,104030.0,0.69282893]
[1762872896405,0.00014384,104040.0,104030.0,0.59668803]
[1762872896610,0.26538468,104040.0,104030.0,0.59668803]
[1762872897018,0.26538468,104040.0,104030.0,0.57597803]
[1762872897212,0.46997552,104040.0,104030.0,0.00419803]
[1762872897619,0.63742468,104040.0,104030.0,0.07430803]
[1762872898714,0.63742468,104040.0,104030.0,0.07730803]
[1762872898916,0.97517224,104040.0,104030.0,0.00719803]
[1762872899124,0.99581857,104040.0,104030.0,0.00719803]
[1762872900208,0.99581857,104040.0,104030.0,0.005]
[1762872900514,0.99581857,104040.0,104020.0,0.00014384]
[1762872900515,0.0748,104030.0,104020.0,0.03553384]
[1762872900719,0.26757084,104030.0,104020.0,0.03773187]
[1762872900915,0.26757084,104030.0,104020.0,0.00234187]
[1762872901105,0.43201965,104030.0,104020.0,0.00014384]
[1762872901308,0.0748,104000.0,103990.0,0.09163]
[1762872901511,0.83234168,104000.0,103990.0,0.09382803]
[1762872901716,0.0748,104020.0,104010.0,0.07011]
[1762872901915,0.66024588,104020.0,104010.0,0.07230803]
[1762872902217,0.80482613,104020.0,104010.0,0.07230803]
[1762872902518,0.43282613,104020.0,104010.0,0.07230803]
[1762872902722,0.80482613,104020.0,104010.0,0.07230803]
[1762872903214,0.80482613,104020.0,104010.0,0.07430803]
[1762872903425,0.43282613,104020.0,104010.0,0.07430803]
[1762872903613,0.80482613,104020.0,104010.0,0.07430803]
[1762872904923,0.56473084,104020.0,104010.0,0.57569803]
[1762872905120,0.19291468,104030.0,104010.0,0.67285733]
[1762872905420,0.28832371,104030.0,104020.0,0.59302]
[1762872905719,0.58100371,104030.0,104020.0,0.59521803]
[1762872906524,0.58085987,104030.0,104020.0,0.59521803]
[1762872906916,0.02060903,104030.0,104020.0,0.69536823]
[1762872907116,0.19277084,104080.0,104060.0,0.11234]
[1762872907316,0.32187326,104070.0,104060.0,0.05910803]
[1762872907512,0.46655064,104070.0,104050.0,0.07025384]
[1762872907822,0.19277084,104060.0,104050.0,0.09316187]
[1762872908128,0.19277084,104060.0,104050.0,0.07245187]
[1762872910126,0.19277084,104060.0,104050.0,0.09316187]
[1762872910625,0.19277084,104060.0,104050.0,0.07245187]
[1762872913225,0.19277084,104060.0,104050.0,0.03773187]
[1762872913426,0.33670969,104060.0,104050.0,0.03773187]
[1762872913626,0.33670969,104060.0,104050.0,0.00014384]
[1762872914132,0.92948053,104060.0,104020.0,0.09163]
[1762872914329,0.19277084,104040.0,104030.0,0.09301803]
[1762872914624,0.38554168,104040.0,104030.0,0.09301803]
[1762872914822,0.19277084,104040.0,104030.0,0.07230803]
[1762872915016,0.19277084,104040.0,104030.0,0.09301803]
[1762872915819,0.37198384,104050.0,104040.0,0.09163]
[1762872915820,0.00014384,104050.0,104040.0,0.09163]
[1762872916119,0.70962586,104050.0,104040.0,0.11453803]
[1762872916322,0.70962586,104050.0,104040.0,0.09382803]
[1762872916715,0.70958586,104050.0,104040.0,0.11453803]
[1762872917629,0.70958586,104050.0,104040.0,0.11653803]
[1762872919023,0.72989798,104050.0,104040.0,0.11653803]
[1762872919224,0.72989798,104050.0,104040.0,0.04642803]
[1762872919425,0.72989798,104050.0,104040.0,0.002]
[1762872919426,0.92266882,104050.0,104040.0,0.002]
[1762872920625,0.72989798,104050.0,104040.0,0.002]
[1762872922932,0.71835345,104050.0,104040.0,0.002]
[1762872923230,0.88803523,104050.0,104040.0,0.002]
[1762872923529,1.28803523,104050.0,104030.0,0.0002403]
[1762872923729,0.38554168,104040.0,104020.0,0.00014384]
[1762872924028,0.56453084,104030.0,104020.0,0.00014384]
[1762872924333,0.72977288,104030.0,104020.0,0.00014384]
[1762872926434,1.12977288,104030.0,103990.0,0.0760804]
[1762872926624,0.53700204,104030.0,104000.0,0.02071]
[1762872926820,0.53700204,104030.0,104000.0,0.02290803]
[1762872927231,1.53101468,104030.0,104000.0,0.00219803]
[1762872927434,1.53101468,104030.0,103990.0,0.0002404]
[1762872927628,0.05129264,104020.0,103990.0,0.00243843]
[1762872927828,0.38554168,104000.0,103990.0,0.00243843]
[1762872928035,0.21308296,104000.0,103990.0,0.02314843]
[1762872928330,0.54974694,104000.0,103990.0,0.02314843]
[1762872928532,0.54974694,104000.0,103990.0,0.00243843]
[1762872928930,0.54974694,104000.0,103990.0,0.03796843]
[1762872929533,0.54974694,104000.0,103990.0,0.10098843]
[1762872929941,0.54974694,104000.0,103990.0,0.10398843]
[1762872930637,0.54974694,104000.0,103990.0,0.02814843]
[1762872931246,0.52664702,104000.0,103990.0,0.02814843]
[1762872931737,0.52664702,104000.0,103990.0,0.10398843]
[1762872932533,0.19277084,104000.0,103990.0,0.10398843]
[1762872932739,1.18694348,104040.0,104000.0,0.09925]
[1762872932936,0.94288,104040.0,104030.0,0.03772803]
[1762872933140,1.65079407,104040.0,104030.0,0.07803803]
[1762872933441,1.65079407,104040.0,104030.0,0.09874803]
[1762872933935,1.65179407,104040.0,104030.0,0.09874803]
[1762872934144,1.84456491,104040.0,104030.0,0.09874803]
[1762872934333,1.65179407,104040.0,104030.0,0.09874803]
[1762872934730,1.65079407,104040.0,104030.0,0.09874803]
[1762872934927,0.19377084,104040.0,104030.0,0.09874803]
[1762872935127,0.001,104040.0,104030.0,0.09874803]
[1762872935436,0.19291468,104050.0,104040.0,0.09925]
[1762872935437,0.00014384,104050.0,104040.0,0.09925]
[1762872935632,1.13565084,104080.0,104060.0,0.09925]
[1762872935831,1.13565084,104080.0,104070.0,0.00219803]
[1762872936032,1.65220311,104080.0,104070.0,0.02290803]
[1762872936234,1.65220311,104080.0,104070.0,0.00219803]
[1762872936929,1.84497395,104080.0,104070.0,0.00219803]
[1762872937530,1.84697395,104080.0,104070.0,0.00219803]
[1762872938036,1.84697395,104080.0,104070.0,0.09874803]
[1762872938244,1.65420311,104080.0,104070.0,0.09874803]
[1762872938542,1.84697395,104080.0,104070.0,0.09874803]
[1762872939248,1.82389304,104080.0,104070.0,0.09874803]
[1762872939845,1.82389304,104080.0,104070.0,0.02290803]
[1762872940941,1.82389304,104080.0,104070.0,0.05843803]
[1762872942446,1.82389304,104080.0,104070.0,0.02290803]
[1762872942646,1.82389304,104080.0,104060.0,0.02355384]
[1762872942848,0.19277084,104070.0,104060.0,0.12230187]
[1762872943144,0.92179909,104080.0,104070.0,0.09655]
[1762872943356,1.48616993,104080.0,104070.0,0.07803803]
[1762872943650,1.63062303,104080.0,104070.0,0.09874803]
[1762872944041,1.82339387,104080.0,104070.0,0.09874803]
[1762872944347,1.82339387,104080.0,104070.0,0.02290803]
[1762872944745,1.82339387,104080.0,104070.0,0.09874803]
[1762872946041,1.82339387,104080.0,104070.0,0.02290803]
[1762872946234,1.82339387,104080.0,104070.0,0.09874803]
[1762872946547,1.82339387,104080.0,104070.0,0.02071]
[1762872946950,1.72038593,104080.0,104070.0,0.02071]
[1762872947451,1.72038593,104080.0,104070.0,0.09874803]
[1762872948142,0.5179731,104080.0,104070.0,0.09874803]
[1762872948341,0.80050684,104080.0,104070.0,0.09874803]
[1762872949345,0.65605374,104080.0,104070.0,0.09874803]
[1762872950445,0.65405374,104080.0,104070.0,0.09874803]
[1762872950643,0.65505374,104080.0,104070.0,0.02290803]
[1762872950951,0.79946665,104080.0,104070.0,0.09794803]
[1762872951548,0.79946665,104080.0,104070.0,0.02071]
[1762872951748,0.79946665,104080.0,104060.0,0.06365384]
[1762872952043,0.51693291,104080.0,104070.0,0.02071]
[1762872952248,0.14541291,104080.0,104070.0,0.09794803]
[1762872952455,0.32997291,104080.0,104070.0,0.09794803]
[1762872953048,0.61250665,104080.0,104070.0,0.09794803]
[1762872953849,0.51685291,104080.0,104070.0,0.09794803]
[1762872954046,0.79938665,104080.0,104070.0,0.09794803]
[1762872954552,0.65497374,104080.0,104070.0,0.09794803]
[1762872956150,0.28353374,104080.0,104070.0,0.09794803]
[1762872956466,0.3724,104080.0,104070.0,0.09794803]
[1762872957250,0.001,104080.0,104070.0,0.09794803]
[1762872957453,0.00014383,104080.0,104070.0,0.33814803]
[1762872958160,0.55763758,104090.0,104080.0,0.09608]
[1762872958357,0.00014384,104090.0,104080.0,0.11898803]
[1762872959854,0.00114384,104090.0,104080.0,0.35918803]
[1762872960255,0.00114384,104090.0,104080.0,0.11898803]
[1762872960657,0.00014384,104090.0,104080.0,0.11898803]
[1762872960850,3.84e-06,104090.0,104080.0,0.35918803]
[1762872961051,0.37159051,104110.0,104100.0,0.09027]
[1762872961257,0.37159051,104110.0,104100.0,0.11317803]
[1762872962161,0.00023051,104110.0,104100.0,0.11317803]
[1762872962361,0.00023051,104110.0,104100.0,0.51317803]
[1762872962362,5.1e-07,104110.0,104100.0,0.51317803]
[1762872962663,9.588e-05,104120.0,104110.0,0.06837]
[1762872962859,0.65394962,104120.0,104110.0,0.09127803]
[1762872963052,0.37141588,104120.0,104110.0,0.09127803]
[1762872963456,0.65394962,104120.0,104110.0,0.09127803]
[1762872964460,0.28262962,104120.0,104110.0,0.09127803]
[1762872964663,0.7018717,104150.0,104140.0,0.09027]
[1762872964864,0.7018717,104150.0,104140.0,0.09246803]
[1762872964865,1.0731517,104150.0,104140.0,0.09246803]
[1762872965162,1.21790686,104150.0,104140.0,0.02409803]
[1762872965462,1.21790686,104150.0,104140.0,0.05838803]
[1762872965658,1.21790686,104150.0,104140.0,0.09246803]
[1762872966063,0.84662686,104150.0,104140.0,0.09246803]
[1762872966270,0.41933796,104150.0,104140.0,0.11317803]
[1762872966463,0.37447043,104150.0,104140.0,0.11317803]